Department Family,Entity,Date,Expense Type,Expense Area,Supplier,Transaction Number,Amount,Description
Department of Health,"NHS Beds, Luton & MK ICB",30/09/2022,Cont Care-Funded Nursing Care Allow,FUNDED NURSING CARE,BONDCARE LONDON,42296511,32162.01,Care Fees
Department of Health,"NHS Beds, Luton & MK ICB",30/09/2022,Cont Care-Funded Nursing Care Allow,FUNDED NURSING CARE,BUPA CARE HOMES,42296517,26949.64,Care Fees
Department of Health,"NHS Beds, Luton & MK ICB",30/09/2022,Cont Care-Funded Nursing Care Allow,FUNDED NURSING CARE,HC ONE LTD,42296522,60323.22,Care Fees
Department of Health,"NHS Beds, Luton & MK ICB",30/09/2022,Cont Care-Funded Nursing Care Allow,FUNDED NURSING CARE,WIDECOMBE NURSING HOME,42296540,34663.29,Care Fees
Department of Health,"NHS Beds, Luton & MK ICB",30/09/2022,Clinical&Medical-Independent Sector,MENTAL HEALTH SERVICES B,TURNING POINT,42301210,377202.69,Independent Sector Healthcare Contract
Department of Health,"NHS Beds, Luton & MK ICB",30/09/2022,Charges from CSU,CONTRACT MANAGEMENT,ATTAIN HEALTH MANAGEMENT SERVICES LTD,42301704,25401.60,Procurement Support
Department of Health,"NHS Beds, Luton & MK ICB",30/09/2022,Clinical&Medical-Commercial Sector,MENTAL HEALTH NCA,PSYCHIATRY UK LLP,42301761,88488.66,Out of Area Treatment
Department of Health,"NHS Beds, Luton & MK ICB",30/09/2022,Clinical&Medical-Independent Sector,ACUTE SERVICES B,HORTON HOSPITAL,42301832,95504.42,Independent Sector Healthcare Contract
Department of Health,"NHS Beds, Luton & MK ICB",30/09/2022,Clinical&Medical-Independent Sector,ACUTE SERVICES B,RAMSAY HEALTH CARE UK T/A BLAKELANDS HOSPITAL,42302036,248762.08,Independent Sector Healthcare Contract
Department of Health,"NHS Beds, Luton & MK ICB",30/09/2022,Clinical&Medical-Independent Sector,CARERS,PRESSBEAU LTD,42302663,26142.90,Care Fees
Department of Health,"NHS Beds, Luton & MK ICB",30/09/2022,Clinical&Medical-Voluntary Sector,HOSPICES,WILLEN HOSPICE,42302717,92171.58,Hospice Services
Department of Health,"NHS Beds, Luton & MK ICB",30/09/2022,Clinical&Medical-Independent Sector,NHS 111,DHU 111 (EAST MIDLANDS) CIC,42310430,74402.52,NHS 111 Service
Department of Health,"NHS Beds, Luton & MK ICB",30/09/2022,Clinical&Medical-Drugs,PRESCRIBING,NORTH WEST OSTOMY SUPPLIES,42310444,40793.38,GP Services
Department of Health,"NHS Beds, Luton & MK ICB",30/09/2022,Cont Care-Physical Disab (<65),CHC ADULT FULLY FUNDED,ROYAL BUCKINGHAMSHIRE HOSPITAL,42310517,59785.71,Care Fees
Department of Health,"NHS Beds, Luton & MK ICB",30/09/2022,Professional Fees,COMMUNICATIONS & PR,NHS MIDLANDS AND LANCASHIRE CSU,42325370,38954.75,Professional Services
Department of Health,"NHS Beds, Luton & MK ICB",30/09/2022,Clinical&Medical-Independent Sector,CARERS,AVERY HOMES (NELSON) LTD,42325484,36000.00,Care Fees
Department of Health,"NHS Beds, Luton & MK ICB",30/09/2022,Clinical&Medical-Independent Sector,LONG TERM CONDITIONS,HCRG CARE SERVICES LTD,42326514,-95945.99,GP Services
Department of Health,"NHS Beds, Luton & MK ICB",30/09/2022,Clinical&Medical-Independent Sector,MENTAL HEALTH ACT,GLENHOLME HEALTHCARE LTD,42332493,25307.27,Care Fees
Department of Health,"NHS Beds, Luton & MK ICB",30/09/2022,Clinical&Medical-Independent Sector,COMMUNITY SERVICES D,SPECSAVERS HEARCARE LTD,42335725,30754.60,Independent Sector Healthcare Contract
Department of Health,"NHS Beds, Luton & MK ICB",30/09/2022,Clinical&Medical-Independent Sector,COMMUNITY SERVICES D,WHADDON MEDICAL CENTRE,42335728,40147.50,Community Service Contract
Department of Health,"NHS Beds, Luton & MK ICB",30/09/2022,Clinical&Medical-Independent Sector,COMMUNITY SERVICES D,WHADDON MEDICAL CENTRE,42335729,50928.00,Community Service Contract
Department of Health,"NHS Beds, Luton & MK ICB",30/09/2022,Clinical&Medical-Independent Sector,LONG TERM CONDITIONS,HCRG CARE SERVICES LTD,42335735,74426.71,GP Services
Department of Health,"NHS Beds, Luton & MK ICB",30/09/2022,Clinical&Medical-Independent Sector,LONG TERM CONDITIONS,HCRG CARE SERVICES LTD,42335737,91164.79,GP Services
Department of Health,"NHS Beds, Luton & MK ICB",30/09/2022,Clinical&Medical-Independent Sector,LONG TERM CONDITIONS,CIRCLE CLINICAL SERVICES LTD,42335738,41667.00,GP Services
Department of Health,"NHS Beds, Luton & MK ICB",30/09/2022,Clinical&Medical-Independent Sector,LONG TERM CONDITIONS,HCRG CARE SERVICES LTD,42335739,108987.04,GP Services
Department of Health,"NHS Beds, Luton & MK ICB",30/09/2022,Clinical&Medical-Independent Sector,LONG TERM CONDITIONS,CIRCLE CLINICAL SERVICES LTD,42335740,887500.00,GP Services
Department of Health,"NHS Beds, Luton & MK ICB",30/09/2022,Clinical&Medical-Independent Sector,WHEELCHAIR SERVICE,AJ MOBILITY LTD,42335754,74252.70,Wheelchair Service Supply
Department of Health,"NHS Beds, Luton & MK ICB",30/09/2022,Clinical&Medical-Independent Sector,CARERS,PRESSBEAU LTD,42335764,76392.90,Care Fees
Department of Health,"NHS Beds, Luton & MK ICB",30/09/2022,Clinical&Medical-Independent Sector,ACUTE SERVICES B,SPIRE HEALTHCARE LTD,42335766,184411.42,Independent Sector Healthcare Contract
Department of Health,"NHS Beds, Luton & MK ICB",30/09/2022,Clinical&Medical-Independent Sector,COMMUNITY SERVICES D,NEWPORT PAGNELL MEDICAL CENTRE,42335767,28417.50,Urology Service
Department of Health,"NHS Beds, Luton & MK ICB",30/09/2022,Clinical&Medical-Independent Sector,LONG TERM CONDITIONS,HCRG CARE SERVICES LTD,42335769,121764.54,GP Services
Department of Health,"NHS Beds, Luton & MK ICB",30/09/2022,Charges from CSU,CONTRACT MANAGEMENT,NHS ARDEN AND GEM CSU,42335775,131041.67,Commissioning Support Unit Contract
Department of Health,"NHS Beds, Luton & MK ICB",30/09/2022,Cont Care-Learning Disab(<65),CHC ADULT FULLY FUNDED,KNIGHTINGLES HEALTHCARE LTD,42349153,39554.00,Care Fees
Department of Health,"NHS Beds, Luton & MK ICB",30/09/2022,Cont Care-Learning Disab(<65),CHC ADULT FULLY FUNDED,KNIGHTINGLES HEALTHCARE LTD,42349154,37955.51,Care Fees
Department of Health,"NHS Beds, Luton & MK ICB",30/09/2022,Cont Care-Learning Disab(<65),CHC AD FULL FUND PERS HLTH BUD,CHILTERN HEALTHCARE,42349155,36319.10,Personal health budget
Department of Health,"NHS Beds, Luton & MK ICB",30/09/2022,Cont Care-Mental Health (<65),CHC ADULT FULLY FUNDED,PRECIOUS HOMES SUPPORT LTD,42349156,33069.16,Care Fees
Department of Health,"NHS Beds, Luton & MK ICB",30/09/2022,Cont Care-Mental Health (<65),CHC ADULT FULLY FUNDED,INTRUST CARE,42349157,30977.78,Care Fees
Department of Health,"NHS Beds, Luton & MK ICB",30/09/2022,Cont Care-Learning Disab(<65),CHC AD FULL FUND PERS HLTH BUD,RESPOND CARE LTD,42349158,28001.41,Personal health budget
Department of Health,"NHS Beds, Luton & MK ICB",30/09/2022,Cont Care-Learning Disab(<65),CHC ADULT FULLY FUNDED,CYGNET CARE SERVICES LTD,42349159,25044.44,Care Fees
Department of Health,"NHS Beds, Luton & MK ICB",30/09/2022,Clinical&Medical-Independent Sector,COMMUNITY SERVICES D,WHADDON MEDICAL CENTRE,42352728,31054.00,Community Service Contract
Department of Health,"NHS Beds, Luton & MK ICB",30/09/2022,Cont Care-Learning Disab(<65),CHC ADULT FULLY FUNDED,KNIGHTINGLES HEALTHCARE LTD,42359194,37315.10,Care Fees
Department of Health,"NHS Beds, Luton & MK ICB",30/09/2022,Cont Care-Learning Disab(<65),CHC ADULT FULLY FUNDED,KNIGHTINGLES HEALTHCARE LTD,42359196,35807.08,Care Fees
Department of Health,"NHS Beds, Luton & MK ICB",30/09/2022,Computer Software/License,PRIMARY CARE IT,ACCURX LTD,42361809,33381.87,GP Services
Department of Health,"NHS Beds, Luton & MK ICB",30/09/2022,Computer Software/License,PRIMARY CARE IT,ACCURX LTD,42361811,33381.87,GP Services
Department of Health,"NHS Beds, Luton & MK ICB",30/09/2022,Cont Care-Learning Disab(<65),CHC ADULT FULLY FUNDED,CANTO LTD,42362496,28865.86,Care Fees
Department of Health,"NHS Beds, Luton & MK ICB",30/09/2022,Clinical&Medical-Independent Sector,MENTAL HEALTH ACT,SYMBIOSIS CARE LTD,42362498,63364.66,Care Fees
Department of Health,"NHS Beds, Luton & MK ICB",30/09/2022,Clinical&Medical-Independent Sector,MENTAL HEALTH ACT,LDA CARE LTD,42362501,59270.76,Care Fees
Department of Health,"NHS Beds, Luton & MK ICB",30/09/2022,Clinical&Medical-Independent Sector,MENTAL HEALTH ACT,PRECIOUS HOMES LTD,42362503,51619.23,Care Fees
Department of Health,"NHS Beds, Luton & MK ICB",30/09/2022,Clinical&Medical-Independent Sector,MENTAL HEALTH ACT,SYMBIOSIS CARE LTD,42362506,48203.58,Care Fees
Department of Health,"NHS Beds, Luton & MK ICB",30/09/2022,Clinical&Medical-Independent Sector,MENTAL HEALTH ACT,PRECIOUS HOMES LTD,42362508,39347.33,Care Fees
Department of Health,"NHS Beds, Luton & MK ICB",30/09/2022,Clinical&Medical-Independent Sector,MENTAL HEALTH ACT,SYMBIOSIS CARE LTD,42362509,33042.77,Care Fees
Department of Health,"NHS Beds, Luton & MK ICB",30/09/2022,Clinical&Medical-Independent Sector,MENTAL HEALTH ACT,PRECIOUS HOMES LTD,42362512,32656.02,Care Fees
Department of Health,"NHS Beds, Luton & MK ICB",30/09/2022,Clinical&Medical-Independent Sector,MENTAL HEALTH ACT,SYMBIOSIS CARE LTD,42362516,29611.20,Care Fees
Department of Health,"NHS Beds, Luton & MK ICB",30/09/2022,Clinical&Medical-Independent Sector,MENTAL HEALTH ACT,ELYSIUM HEALTHCARE LTD,42362518,26244.29,Care Fees
Department of Health,"NHS Beds, Luton & MK ICB",30/09/2022,Clinical&Medical-Othe Public Sector,REABLEMENT,LUTON BOROUGH COUNCIL,42370360,25000.00,Better Care Fund
Department of Health,"NHS Beds, Luton & MK ICB",30/09/2022,Clinical&Medical-Independent Sector,CONTINUING HEALTHCARE ASSESSMENT & SUPPORT,B WELL HEALTH & SOCIAL CARE GROUP LTD,42371461,29796.25,Falls Prevention Service
Department of Health,"NHS Beds, Luton & MK ICB",30/09/2022,Clinical&Medical-Independent Sector,CARERS,PARKLANDS NURSING HOME,42371476,58751.96,Care Fees
Department of Health,"NHS Beds, Luton & MK ICB",30/09/2022,Contr Estate Management,INTERPRETING SERVICES,NHS PROPERTY SERVICES LTD,42376411,25226.89,Portacabin Hire
Department of Health,"NHS Beds, Luton & MK ICB",30/09/2022,C&M-APMS Contract Value,DELEGATED GP,PRACTICE SURGERIES LTD,42389071,56865.78,GP Services
Department of Health,"NHS Beds, Luton & MK ICB",30/09/2022,C&M-APMS Contract Value,DELEGATED GP,KEY MEDICAL SERVICES LTD,42389073,32633.51,GP Services
Department of Health,"NHS Beds, Luton & MK ICB",30/09/2022,C&M-APMS Contract Value,DELEGATED GP,PRACTICE SURGERIES LTD,42389075,66502.95,GP Services
Department of Health,"NHS Beds, Luton & MK ICB",30/09/2022,C&M-APMS Contract Value,DELEGATED GP,PRACTICE SURGERIES LTD,42389077,104630.86,GP Services
Department of Health,"NHS Beds, Luton & MK ICB",30/09/2022,C&M-APMS Contract Value,DELEGATED GP,PUTNOE MEDICAL CENTRE PARTNERSHIP,42389079,162256.01,GP Services
Department of Health,"NHS Beds, Luton & MK ICB",30/09/2022,C&M-PMS Contract Value,DELEGATED GP,MKGP PLUS LTD (GP),42389081,49968.50,GP Services
Department of Health,"NHS Beds, Luton & MK ICB",30/09/2022,C&M-APMS Contract Value,DELEGATED GP,EAST LONDON NHS FOUNDATION TRUST (CAULDWELL MEDICAL PRACTICE),42389083,72501.43,GP Services
Department of Health,"NHS Beds, Luton & MK ICB",30/09/2022,C&M-APMS Contract Value,DELEGATED GP,SHORTSTOWN SURGERY,42389086,33880.96,GP Services
Department of Health,"NHS Beds, Luton & MK ICB",30/09/2022,C&M-APMS Contract Value,DELEGATED GP,HERTS URGENT CARE,42389088,128441.65,GP Services
Department of Health,"NHS Beds, Luton & MK ICB",30/09/2022,Clinical&Medical-Independent Sector,ACUTE SERVICES B,PINEHILL HOSPITAL,42394903,192711.00,Independent Sector Healthcare Contract
Department of Health,"NHS Beds, Luton & MK ICB",30/09/2022,Clinical&Medical-Independent Sector,GP INVESTMENT,MILTON KEYNES URGENT CARE SERVICES,42394914,45260.00,GP Services
Department of Health,"NHS Beds, Luton & MK ICB",30/09/2022,C&M-APMS Contract Value,DELEGATED GP,ONEPRIMARYCARE LLP GP,42406113,59031.33,GP Services
Department of Health,"NHS Beds, Luton & MK ICB",30/09/2022,C&M-APMS Contract Value,DELEGATED GP,PRACTICE SURGERIES LTD,42406117,143318.57,GP Services
Department of Health,"NHS Beds, Luton & MK ICB",30/09/2022,Contract & Agency-Agency A & C,EXECUTIVE MANAGEMENT TEAM,CENTRE FOR LOCAL ECONOMIC STRATEGIES LTD,42407619,50000.00,Agency Staff Costs
Department of Health,"NHS Beds, Luton & MK ICB",30/09/2022,Hcare Srv Rec NHS Trust-Contract Baseline,ACUTE SERVICES A,BARTS HEALTH NHS TRUST,42414725,50658.14,NHS Healthcare Contract
Department of Health,"NHS Beds, Luton & MK ICB",30/09/2022,Hcare Srv Rec Fdtn Trust-Contract Baseline,ACUTE SERVICES A,BEDFORDSHIRE HOSPITAL FOUNDATION TRUST,42414729,46746435.83,NHS Healthcare Contract
Department of Health,"NHS Beds, Luton & MK ICB",30/09/2022,Hcare Srv Rec Fdtn Trust-Contract Baseline,DELEGATED GP,BEDFORDSHIRE HOSPITAL FOUNDATION TRUST,42414733,230949.72,GP Services
Department of Health,"NHS Beds, Luton & MK ICB",30/09/2022,Hcare Srv Rec Fdtn Trust-Contract Baseline,LONG TERM CONDITIONS,BEDFORDSHIRE HOSPITAL FOUNDATION TRUST,42414735,44297.94,NHS Healthcare Contract
Department of Health,"NHS Beds, Luton & MK ICB",30/09/2022,Hcare Srv Rec Fdtn Trust-Contract Baseline,COMMUNITY SERVICES A,BEDFORDSHIRE HOSPITAL FOUNDATION TRUST,42414737,210591.27,NHS Healthcare Contract
Department of Health,"NHS Beds, Luton & MK ICB",30/09/2022,Oth Travel Costs-Patient Transport,PATIENT TRANSPORT SERVICES,BEDFORDSHIRE HOSPITAL FOUNDATION TRUST,42414739,36626.39,Patient Transport
Department of Health,"NHS Beds, Luton & MK ICB",30/09/2022,Hcare Srv Rec Fdtn Trust-Contract Baseline,ACUTE SERVICES A,BEDFORDSHIRE HOSPITAL FOUNDATION TRUST,42414741,1395495.83,NHS Healthcare Contract
Department of Health,"NHS Beds, Luton & MK ICB",30/09/2022,Hcare Srv Rec NHS Trust-Contract Baseline,ACUTE SERVICES A,BUCKINGHAMSHIRE HEALTHCARE NHS TRUST,42414743,965921.81,NHS Healthcare Contract
Department of Health,"NHS Beds, Luton & MK ICB",30/09/2022,Hcare Srv Rec Fdtn Trust-Contract Baseline,ACUTE SERVICES A,CAMBRIDGE UNIVERSITY HOSPITALS NHS FOUNDATION TRUST,42414745,1419106.80,NHS Healthcare Contract
Department of Health,"NHS Beds, Luton & MK ICB",30/09/2022,Hcare Srv Rec NHS Trust-Contract Baseline,COMMUNITY SERVICES A,CAMBRIDGESHIRE COMMUNITY SERVICES,42414747,2248961.23,NHS Healthcare Contract
Department of Health,"NHS Beds, Luton & MK ICB",30/09/2022,Cont Care-NHS Trust-Children,CHILDRENS CONTINUING CARE,CAMBRIDGESHIRE COMMUNITY SERVICES,42414749,165452.66,NHS Healthcare Contract
Department of Health,"NHS Beds, Luton & MK ICB",30/09/2022,Hcare Srv Rec Fdtn Trust-Contract Baseline,COMMUNITY SERVICES A,CENTRAL & NORTH WEST LONDON NHS FOUNDATION TRUST,42414751,1921458.28,NHS Healthcare Contract
Department of Health,"NHS Beds, Luton & MK ICB",30/09/2022,Hcare Srv Rec Fdtn Trust-Contract Baseline,MENTAL HEALTH SERVICES A,CENTRAL & NORTH WEST LONDON NHS FOUNDATION TRUST,42414757,3689054.63,NHS Healthcare Contract
Department of Health,"NHS Beds, Luton & MK ICB",30/09/2022,Hcare Srv Rec NHS Trust-Contract Baseline,ACUTE SERVICES A,EAST AND NORTH HERTFORDSHIRE NHS TRUST,42414759,3380995.10,NHS Healthcare Contract
Department of Health,"NHS Beds, Luton & MK ICB",30/09/2022,Hcare Srv Rec Fdtn Trust-Contract Baseline,COMMUNITY SERVICES A,EAST LONDON NHS FOUNDATION TRUST,42414763,3738177.51,NHS Healthcare Contract
Department of Health,"NHS Beds, Luton & MK ICB",30/09/2022,Hcare Srv Rec Fdtn Trust-Contract Baseline,LONG TERM CONDITIONS,EAST LONDON NHS FOUNDATION TRUST,42414765,30825.45,NHS Healthcare Contract
Department of Health,"NHS Beds, Luton & MK ICB",30/09/2022,Hcare Srv Rec Fdtn Trust-Contract Baseline,MENTAL HEALTH SERVICES A,EAST LONDON NHS FOUNDATION TRUST,42414767,10100057.27,NHS Healthcare Contract
Department of Health,"NHS Beds, Luton & MK ICB",30/09/2022,Hcare Srv Rec NHS Trust-Contract Baseline,AMBULANCE SERVICES,EAST OF ENGLAND AMBULANCE SERVICE NHS TRUST,42414769,2507226.64,NHS Healthcare Contract
Department of Health,"NHS Beds, Luton & MK ICB",30/09/2022,Oth Travel Costs-Patient Transport,PATIENT TRANSPORT SERVICES,EAST OF ENGLAND AMBULANCE SERVICE NHS TRUST,42414771,489041.33,Patient Transport
Department of Health,"NHS Beds, Luton & MK ICB",30/09/2022,Hcare Srv Rec Fdtn Trust-Contract Baseline,ACUTE SERVICES A,GREAT ORMOND STREET HOSPITAL FOR CHILDREN NHS FOUNDATION TRUST,42414773,127702.18,NHS Healthcare Contract
Department of Health,"NHS Beds, Luton & MK ICB",30/09/2022,Hcare Srv Rec Fdtn Trust-Contract Baseline,ACUTE SERVICES A,GUYS & ST THOMAS HOSPITAL NHS FOUNDATION TRUST,42414776,493718.61,NHS Healthcare Contract
Department of Health,"NHS Beds, Luton & MK ICB",30/09/2022,Hcare Srv Rec NHS Trust-Contract Baseline,ACUTE SERVICES A,IMPERIAL COLLEGE HEALTHCARE NHS TRUST,42414778,166011.90,NHS Healthcare Contract
Department of Health,"NHS Beds, Luton & MK ICB",30/09/2022,Hcare Srv Rec NHS Trust-Contract Baseline,ACUTE SERVICES A,LONDON NORTH WEST HEALTHCARE NHS TRUST,42414781,135861.97,NHS Healthcare Contract
Department of Health,"NHS Beds, Luton & MK ICB",30/09/2022,Hcare Srv Rec Fdtn Trust-Contract Baseline,ACUTE SERVICES A,MILTON KEYNES HOSPITAL NHS FOUNDATION TRUST,42414783,21287813.54,NHS Healthcare Contract
Department of Health,"NHS Beds, Luton & MK ICB",30/09/2022,Hcare Srv Rec Fdtn Trust-Contract Baseline,ACUTE SERVICES A,MILTON KEYNES HOSPITAL NHS FOUNDATION TRUST,42414785,676351.33,NHS Healthcare Contract
Department of Health,"NHS Beds, Luton & MK ICB",30/09/2022,Hcare Srv Rec Fdtn Trust-Contract Baseline,ACUTE SERVICES A,MOORFIELDS EYE HOSPITAL NHS FOUNDATION TRUST,42414787,159514.29,NHS Healthcare Contract
Department of Health,"NHS Beds, Luton & MK ICB",30/09/2022,Hcare Srv Rec Fdtn Trust-Contract Baseline,ACUTE SERVICES A,NORTH WEST ANGLIA NHS FOUNDATION TRUST,42414789,110896.84,NHS Healthcare Contract
Department of Health,"NHS Beds, Luton & MK ICB",30/09/2022,Hcare Srv Rec NHS Trust-Contract Baseline,ACUTE SERVICES A,NORTHAMPTON GENERAL HOSPITAL NHS TRUST,42414791,284714.07,NHS Healthcare Contract
Department of Health,"NHS Beds, Luton & MK ICB",30/09/2022,Hcare Srv Rec Fdtn Trust-Contract Baseline,ACUTE SERVICES A,OXFORD UNIVERSITY HOSPITALS NHS FOUNDATION TRUST,42414793,873973.53,NHS Healthcare Contract
Department of Health,"NHS Beds, Luton & MK ICB",30/09/2022,Hcare Srv Rec Fdtn Trust-Contract Baseline,ACUTE SERVICES A,ROYAL FREE LONDON NHS FOUNDATION TRUST,42414796,257678.93,NHS Healthcare Contract
Department of Health,"NHS Beds, Luton & MK ICB",30/09/2022,Hcare Srv Rec NHS Trust-Contract Baseline,ACUTE SERVICES A,ROYAL NATIONAL ORTHOPAEDIC HOSPITAL NHS TRUST,42414798,261286.30,NHS Healthcare Contract
Department of Health,"NHS Beds, Luton & MK ICB",30/09/2022,Hcare Srv Rec Fdtn Trust-Contract Baseline,ACUTE SERVICES A,ROYAL PAPWORTH HOSPITAL NHS FOUNDATION TRUST,42414800,253443.23,NHS Healthcare Contract
Department of Health,"NHS Beds, Luton & MK ICB",30/09/2022,Hcare Srv Rec Fdtn Trust-Contract Baseline,AMBULANCE SERVICES,SOUTH CENTRAL AMBULANCE SERVICE NHS FOUNDATION TRUST,42414802,1121521.25,NHS Healthcare Contract
Department of Health,"NHS Beds, Luton & MK ICB",30/09/2022,Oth Travel Costs-Patient Transport,PATIENT TRANSPORT SERVICES,SOUTH CENTRAL AMBULANCE SERVICE NHS FOUNDATION TRUST,42414804,191058.15,Patient Transport
Department of Health,"NHS Beds, Luton & MK ICB",30/09/2022,Hcare Srv Rec Fdtn Trust-Contract Baseline,ACUTE SERVICES A,UNIVERSITY COLLEGE LONDON HOSPITALS NHS FOUNDATION TRUST,42414806,524814.83,NHS Healthcare Contract
Department of Health,"NHS Beds, Luton & MK ICB",30/09/2022,Hcare Srv Rec NHS Trust-Contract Baseline,ACUTE SERVICES A,WEST HERTFORDSHIRE HOSPITALS NHS TRUST,42414808,280776.26,NHS Healthcare Contract
Department of Health,"NHS Beds, Luton & MK ICB",30/09/2022,Clinical&Medical-Independent Sector - Prior Year,LONG TERM CONDITIONS,ALIVECOR LTD,42422925,29997.00,GP Services
Department of Health,"NHS Beds, Luton & MK ICB",30/09/2022,Clinical&Medical-Commercial Sector,COMMUNITY SERVICES C,DISABILITY RESOURCE CENTRE,42422944,29952.00,Payroll & Recruitment Services
Department of Health,"NHS Beds, Luton & MK ICB",30/09/2022,Clinical&Medical-Independent Sector,NHS 111,HERTS URGENT CARE,42423123,229614.13,NHS 111 Service
Department of Health,"NHS Beds, Luton & MK ICB",30/09/2022,Clinical&Medical-Independent Sector,OUT OF HOURS,HERTS URGENT CARE,42423123,799021.96,Out of Hours Service
Department of Health,"NHS Beds, Luton & MK ICB",30/09/2022,Clinical&Medical-Clinical Other,NHS 111,HERTS URGENT CARE,42423127,86680.67,NHS 111 Service
Department of Health,"NHS Beds, Luton & MK ICB",30/09/2022,Clinical&Medical-Independent Sector,GP INVESTMENT,EVEXIA HEALTH LTD,42423201,54371.15,GP Services
Department of Health,"NHS Beds, Luton & MK ICB",30/09/2022,Clinical&Medical-Voluntary Sector,TERMINATION OF PREGNANCY (TOP),BRITISH PREGNANCY ADVISORY SERVICE,42423239,108994.00,Independent Sector Healthcare Contract
Department of Health,"NHS Beds, Luton & MK ICB",30/09/2022,Clinical&Medical-Independent Sector,COMMISSIONING SCHEMES,DHU HEALTH CARE CIC,42423256,86624.00,Integrated Urgent Care Contract
Department of Health,"NHS Beds, Luton & MK ICB",30/09/2022,Clinical&Medical-Independent Sector,OUT OF HOURS,DHU HEALTH CARE CIC,42423256,261625.73,GP Services
Department of Health,"NHS Beds, Luton & MK ICB",30/09/2022,Clinical&Medical-Independent Sector,COMMISSIONING SCHEMES,PUTNOE MEDICAL CENTRE PARTNERSHIP,42423311,128102.16,Walk in Centre
Department of Health,"NHS Beds, Luton & MK ICB",30/09/2022,Clinical&Medical-Commercial Sector,COMMUNITY SERVICES C,DISABILITY RESOURCE CENTRE,42423438,27815.00,Payroll & Recruitment Services
Department of Health,"NHS Beds, Luton & MK ICB",30/09/2022,Clinical&Medical-Independent Sector,GP INVESTMENT,BEDFORD ON CALL,42423464,160564.64,GP Services
Department of Health,"NHS Beds, Luton & MK ICB",30/09/2022,C&M- IIF ACHIEVEMENT,DELEGATED GP,WHADDON HEALTHCARE,42426901,56186.59,GP Services
Department of Health,"NHS Beds, Luton & MK ICB",30/09/2022,Income tax <1Yr,BALANCE SHEET,HMRC,42436441,237573.64,Tax and NI
Department of Health,"NHS Beds, Luton & MK ICB",30/09/2022,Income tax <1Yr-Student Loans,BALANCE SHEET,HMRC,42436441,3526.00,Tax and NI
Department of Health,"NHS Beds, Luton & MK ICB",30/09/2022,National Insurance < 1 yr-NI- ERS,BALANCE SHEET,HMRC,42436441,184193.21,Tax and NI
Department of Health,"NHS Beds, Luton & MK ICB",30/09/2022,National Insurance < 1 yr-NI-EES,BALANCE SHEET,HMRC,42436441,119417.46,Tax and NI
Department of Health,"NHS Beds, Luton & MK ICB",30/09/2022,Clinical&Medical-Independent Sector,LONG TERM CONDITIONS,HCRG CARE SERVICES LTD,42437794,100734.58,GP Services
Department of Health,"NHS Beds, Luton & MK ICB",30/09/2022,Clinical&Medical-Independent Sector,LONG TERM CONDITIONS,HCRG CARE SERVICES LTD,42437810,25180.47,GP Services
Department of Health,"NHS Beds, Luton & MK ICB",30/09/2022,Computer Software/License,CONTINUING HEALTHCARE ASSESSMENT & SUPPORT,MCB SOFTWARE SOLUTION LTD,42437847,32400.00,Continuing Healthcare IT Licence
Department of Health,"NHS Beds, Luton & MK ICB",30/09/2022,Computer Software/License,CONTINUING HEALTHCARE ASSESSMENT & SUPPORT,MCB SOFTWARE SOLUTION LTD,42437858,32400.00,Continuing Healthcare IT Licence
Department of Health,"NHS Beds, Luton & MK ICB",30/09/2022,Clinical&Medical-Independent Sector,ACUTE SERVICES B,CIRCLE HEALTH GROUP LTD,42437863,-48383.70,Independent Sector Healthcare Contract
Department of Health,"NHS Beds, Luton & MK ICB",30/09/2022,Clinical&Medical-Independent Sector,ACUTE SERVICES B,CIRCLE HEALTH GROUP LTD,42438283,207933.98,Independent Sector Healthcare Contract
Department of Health,"NHS Beds, Luton & MK ICB",30/09/2022,Clinical&Medical-Independent Sector,ACUTE SERVICES B,CIRCLE HEALTH GROUP LTD,42438289,181231.60,Independent Sector Healthcare Contract
Department of Health,"NHS Beds, Luton & MK ICB",30/09/2022,Clinical&Medical-Independent Sector,ACUTE SERVICES B,SPAMEDICA LTD,42438363,258477.00,Independent Sector Healthcare Contract
Department of Health,"NHS Beds, Luton & MK ICB",30/09/2022,Clinical&Medical-Independent Sector,CARERS,SHAROOT LTD,42438402,32328.57,Care Fees
Department of Health,"NHS Beds, Luton & MK ICB",30/09/2022,Clinical&Medical-Independent Sector,ACUTE SERVICES B,HORTON HOSPITAL,42438494,-84941.47,Independent Sector Healthcare Contract
Department of Health,"NHS Beds, Luton & MK ICB",30/09/2022,Clinical&Medical-Independent Sector,CARERS,BONDCARE,42438530,42071.43,Care Fees
Department of Health,"NHS Beds, Luton & MK ICB",30/09/2022,Clinical&Medical-Commercial Sector,INTERMEDIATE CARE,HEADWAY BEDFORD,42438570,41139.75,Care Fees
Department of Health,"NHS Beds, Luton & MK ICB",30/09/2022,Clinical&Medical-Independent Sector,CARERS,BONDCARE,42438582,40714.29,Care Fees
Department of Health,"NHS Beds, Luton & MK ICB",30/09/2022,Clinical&Medical-Independent Sector,CARERS,BONDCARE,42438603,42071.43,Care Fees
Department of Health,"NHS Beds, Luton & MK ICB",30/09/2022,Clinical&Medical-Independent Sector,ACUTE SERVICES B,RAMSAY HEALTH CARE UK T/A BLAKELANDS HOSPITAL,42438733,-194369.90,Independent Sector Healthcare Contract
Department of Health,"NHS Beds, Luton & MK ICB",30/09/2022,Clinical&Medical-Independent Sector,MENTAL HEALTH SERVICES B,TURNING POINT,42438761,377202.69,Independent Sector Healthcare Contract
Department of Health,"NHS Beds, Luton & MK ICB",30/09/2022,Clinical&Medical-Commercial Sector,INTERMEDIATE CARE,RANC CARE HOMES LTD,42448677,27010.80,Care Fees
Department of Health,"NHS Beds, Luton & MK ICB",30/09/2022,Clinical&Medical-Commercial Sector,INTERMEDIATE CARE,RANC CARE HOMES LTD,42448701,27911.16,Care Fees
Department of Health,"NHS Beds, Luton & MK ICB",30/09/2022,Clinical&Medical-Independent Sector,CARERS,KIMBOLTON LODGE LTD,42448804,41628.50,Care Fees
Department of Health,"NHS Beds, Luton & MK ICB",30/09/2022,Clinical&Medical-Independent Sector,MENTAL HEALTH ACT,ELYSIUM HEALTHCARE LTD,42451399,36456.71,Care Fees
Department of Health,"NHS Beds, Luton & MK ICB",30/09/2022,Clinical&Medical-Independent Sector,MENTAL HEALTH ACT,MIDCO CARE LTD,42451401,29414.70,Care Fees
Department of Health,"NHS Beds, Luton & MK ICB",30/09/2022,Clinical&Medical-Independent Sector,COMMUNITY SERVICES E,BOURN HALL CLINIC,42464831,41670.00,Specialist Fertility Services (IVF)
Department of Health,"NHS Beds, Luton & MK ICB",30/09/2022,Clinical&Medical-Independent Sector,COMMUNITY SERVICES D,OCULAR OUTCOMES LTD,42464836,45462.67,Community Urgent Eyecare Service
Department of Health,"NHS Beds, Luton & MK ICB",30/09/2022,C&M-GMS Global Sum,DELEGATED GP,WHADDON HEALTHCARE,42466516,163138.12,GP Services
Department of Health,"NHS Beds, Luton & MK ICB",30/09/2022,C&M-GMS Global Sum,DELEGATED GP,FISHERMEAD MEDICAL CENTRE,42466519,52249.38,GP Services
Department of Health,"NHS Beds, Luton & MK ICB",30/09/2022,C&M-GMS Global Sum,DELEGATED GP,WOLVERTON HEALTH CENTRE,42466522,113194.32,GP Services
Department of Health,"NHS Beds, Luton & MK ICB",30/09/2022,C&M-GMS Cost of Drugs -Prescribing,CENTRAL DRUGS,HILLTOPS MEDICAL CENTRE,42466524,32843.12,Medicines
Department of Health,"NHS Beds, Luton & MK ICB",30/09/2022,C&M-GMS Global Sum,DELEGATED GP,HILLTOPS MEDICAL CENTRE,42466525,111494.72,GP Services
Department of Health,"NHS Beds, Luton & MK ICB",30/09/2022,C&M-GMS Global Sum,DELEGATED GP,NEWPORT PAGNELL MEDICAL CENTRE,42466530,167266.74,GP Services
Department of Health,"NHS Beds, Luton & MK ICB",30/09/2022,C&M-GMS Global Sum,DELEGATED GP,PURBECK HEALTH CENTRE,42466532,46007.15,GP Services
Department of Health,"NHS Beds, Luton & MK ICB",30/09/2022,C&M-GMS Global Sum,DELEGATED GP,BEDFORD STREET SURGERY,42466535,105426.35,GP Services
Department of Health,"NHS Beds, Luton & MK ICB",30/09/2022,C&M-GMS Global Sum,DELEGATED GP,ASHFIELD MEDICAL CENTRE MILTON KEYNES,42466538,91388.13,GP Services
Department of Health,"NHS Beds, Luton & MK ICB",30/09/2022,C&M-GMS Global Sum,DELEGATED GP,PARKSIDE MEDICAL CENTRE,42466542,81784.90,GP Services
Department of Health,"NHS Beds, Luton & MK ICB",30/09/2022,C&M-GMS Global Sum,DELEGATED GP,COBBS GARDEN SURGERY,42466547,67145.10,GP Services
Department of Health,"NHS Beds, Luton & MK ICB",30/09/2022,C&M-GMS Global Sum,DELEGATED GP,STONY MEDICAL CENTRE,42466549,93958.75,GP Services
Department of Health,"NHS Beds, Luton & MK ICB",30/09/2022,C&M-GMS Global Sum,DELEGATED GP,GROVE SURGERY,42466552,67671.36,GP Services
Department of Health,"NHS Beds, Luton & MK ICB",30/09/2022,C&M-GMS Global Sum,DELEGATED GP,SOVEREIGN MEDICAL CENTRE,42466555,90016.46,GP Services
Department of Health,"NHS Beds, Luton & MK ICB",30/09/2022,C&M-GMS Global Sum,DELEGATED GP,CMK MEDICAL CENTRE,42466558,135329.17,GP Services
Department of Health,"NHS Beds, Luton & MK ICB",30/09/2022,C&M-GMS Global Sum,DELEGATED GP,RED HOUSE SURGERY,42466562,113591.85,GP Services
Department of Health,"NHS Beds, Luton & MK ICB",30/09/2022,C&M-GMS Global Sum,DELEGATED GP,STONEDEAN PRACTICE,42466565,59020.53,GP Services
Department of Health,"NHS Beds, Luton & MK ICB",30/09/2022,C&M-GMS Global Sum,DELEGATED GP,WESTCROFT HEALTH CENTRE,42466567,89799.72,GP Services
Department of Health,"NHS Beds, Luton & MK ICB",30/09/2022,C&M-GMS Global Sum,DELEGATED GP,WESTFIELD ROAD SURGERY,42466569,61339.89,GP Services
Department of Health,"NHS Beds, Luton & MK ICB",30/09/2022,C&M-GMS Global Sum,DELEGATED GP,WALNUT TREE HEALTH CENTRE,42466572,77564.14,GP Services
Department of Health,"NHS Beds, Luton & MK ICB",30/09/2022,C&M-GMS Global Sum,DELEGATED GP,MILTON KEYNES VILLAGE PRACTICE,42485504,99221.85,GP Services
Department of Health,"NHS Beds, Luton & MK ICB",30/09/2022,C&M-GMS Global Sum,DELEGATED GP,OAKRIDGE PARK MEDICAL CENTRE,42485515,83742.54,GP Services
Department of Health,"NHS Beds, Luton & MK ICB",30/09/2022,ME - GMS GP Prior Year ERs,DELEGATED GP,CMK MEDICAL CENTRE,42485521,-31898.03,GP Services
Department of Health,"NHS Beds, Luton & MK ICB",30/09/2022,ME-GMS GP Prior Year EEs,DELEGATED GP,CMK MEDICAL CENTRE,42485521,-32164.21,GP Services
Department of Health,"NHS Beds, Luton & MK ICB",30/09/2022,C&M-GMS Global Sum,DELEGATED GP,WATLING VALE MEDICAL CENTRE,42485523,78791.74,GP Services
Department of Health,"NHS Beds, Luton & MK ICB",30/09/2022,Hcare Srv Rec NHS ICB-Non Contract,ACUTE SERVICES D,NHS NORFOLK AND WAVENEY�ICB�,42494572,87137.34,Maternal Medicine Network Costs
Department of Health,"NHS Beds, Luton & MK ICB",30/09/2022,Clinical&Medical-Commercial Sector,INTERMEDIATE CARE,HEADWAY BEDFORD,42494735,41139.75,Care Fees
Department of Health,"NHS Beds, Luton & MK ICB",30/09/2022,Clinical&Medical-Voluntary Sector,HOSPICES,WILLEN HOSPICE,42516346,53002.00,Hospice Services
Department of Health,"NHS Beds, Luton & MK ICB",30/09/2022,Cont Care- Prior Year Payments,CHC ADULT FULLY FUNDED,MILTON KEYNES COUNCIL,42516355,133209.98,Care Fees
Department of Health,"NHS Beds, Luton & MK ICB",30/09/2022,Clinical&Medical-Independent Sector,CARERS,HCRG CARE SERVICES LTD,42516386,138052.17,Care Fees
Department of Health,"NHS Beds, Luton & MK ICB",30/09/2022,Clinical&Medical-Voluntary Sector,HOSPICES,SUE RYDER CARE,42516466,48758.16,Hospice Services
Department of Health,"NHS Beds, Luton & MK ICB",30/09/2022,Clinical&Medical-Independent Sector,CARERS,HC ONE LTD,42516624,34259.43,Care Fees
Department of Health,"NHS Beds, Luton & MK ICB",30/09/2022,Clinical&Medical-Clinical Other,NHS 111,HERTS URGENT CARE,42529506,-104016.80,NHS 111 Service
Department of Health,"NHS Beds, Luton & MK ICB",30/09/2022,Clinical&Medical-Independent Sector,NHS 111,HERTS URGENT CARE,42529507,-26049.52,NHS 111 Service
Department of Health,"NHS Beds, Luton & MK ICB",30/09/2022,Clinical&Medical-Independent Sector,OUT OF HOURS,HERTS URGENT CARE,42529507,-34027.82,GP Services
Department of Health,"NHS Beds, Luton & MK ICB",30/09/2022,Clinical&Medical-Independent Sector,COMMUNITY SERVICES E,BOURN HALL CLINIC,42534101,35490.00,Specialist Fertility Services (IVF)
Department of Health,"NHS Beds, Luton & MK ICB",30/09/2022,Services From Local Authorities,SAFEGUARDING,MILTON KEYNES COUNCIL,42537527,65782.00,MK Together Safeguarding
Department of Health,"NHS Beds, Luton & MK ICB",30/09/2022,Cont Care-Physical Disab (<65),CHC AD FULL FUND PERS HLTH BUD,BESPOKE HEALTH & SOCIAL CARE LTD,42543476,46381.23,Personal health budget
Department of Health,"NHS Beds, Luton & MK ICB",30/09/2022,Cont Care-Learning Disab(<65),CHC AD FULL FUND PERS HLTH BUD,HAVILAH CARE LTD,42544521,37047.30,Personal health budget
Department of Health,"NHS Beds, Luton & MK ICB",30/09/2022,Cont Care-Mental Health (<65),CHC ADULT FULLY FUNDED,HESLEY GROUP,42544528,32788.18,Care Fees
Department of Health,"NHS Beds, Luton & MK ICB",30/09/2022,Cont Care-Learning Disab(<65),CHC AD FULL FUND PERS HLTH BUD,PROTEA CARE HOMES (KENT) LTD,42544535,28375.22,Personal health budget
Department of Health,"NHS Beds, Luton & MK ICB",30/09/2022,Cont Care-Learning Disab(<65),CHC ADULT FULLY FUNDED,CARE SUPPORT MK LTD,42544544,25789.44,Care Fees
Department of Health,"NHS Beds, Luton & MK ICB",30/09/2022,Clinical&Medical-Independent Sector,ACUTE SERVICES B,SPAMEDICA LTD,42549248,97985.91,Independent Sector Healthcare Contract
Department of Health,"NHS Beds, Luton & MK ICB",30/09/2022,Clinical&Medical-Independent Sector,ACUTE SERVICES B,SPIRE HEALTHCARE LTD,42549286,57071.19,Independent Sector Healthcare Contract
Department of Health,"NHS Beds, Luton & MK ICB",30/09/2022,Clinical&Medical-Independent Sector,ACUTE SERVICES B,CIRCLE HEALTH GROUP LTD,42549298,37441.35,Independent Sector Healthcare Contract
Department of Health,"NHS Beds, Luton & MK ICB",30/09/2022,Hcare Srv Rec NHS ICB-Non Contract,ACUTE SERVICES D,NHS NORFOLK AND WAVENEY�ICB�,42549445,-31000.00,Maternal Medicine Network Costs
Department of Health,"NHS Beds, Luton & MK ICB",30/09/2022,Clinical&Medical-Independent Sector,ACUTE SERVICES B,SPAMEDICA LTD,42549449,-71939.78,Independent Sector Healthcare Contract
Department of Health,"NHS Beds, Luton & MK ICB",30/09/2022,Clinical&Medical-Commercial Sector,INTERMEDIATE CARE,MARBROOK CARE,42563522,-30143.23,Care Fees
Department of Health,"NHS Beds, Luton & MK ICB",30/09/2022,Clinical&Medical-Independent Sector,CARERS,CASTLEMEAD COURT CARE CENTRE LTD,42563553,40197.08,Care Fees
Department of Health,"NHS Beds, Luton & MK ICB",30/09/2022,Cont Care-Physical Disab (<65),CHC AD FULL FUND PERS HLTH BUD,PHB MCB101626KOR QHG,42570668,31428.10,Personal health budget
Department of Health,"NHS Beds, Luton & MK ICB",30/09/2022,C&M-GMS Global Sum,DELEGATED GP,GOLDINGTON AVENUE SURGERY,42578255,115612.72,GP Services
Department of Health,"NHS Beds, Luton & MK ICB",30/09/2022,C&M-GMS Global Sum,DELEGATED GP,WHEATFIELD SURGERY,42583119,99701.71,GP Services
Department of Health,"NHS Beds, Luton & MK ICB",30/09/2022,C&M-GMS Global Sum,DELEGATED GP,FLITWICK SURGERY,42583127,105906.47,GP Services
Department of Health,"NHS Beds, Luton & MK ICB",30/09/2022,C&M-GMS Global Sum,DELEGATED GP,GARDENIA & MARSH FARM PRACTICE,42583131,97262.19,GP Services
Department of Health,"NHS Beds, Luton & MK ICB",30/09/2022,C&M-GMS Global Sum,DELEGATED GP,HEALTHY LIVING CENTRE,42583141,67195.80,GP Services
Department of Health,"NHS Beds, Luton & MK ICB",30/09/2022,C&M-GMS Global Sum,DELEGATED GP,GT BARFORD SURGERY,42583145,44972.28,GP Services
Department of Health,"NHS Beds, Luton & MK ICB",30/09/2022,C&M-GMS Global Sum,DELEGATED GP,IVEL MEDICAL CENTRE,42583148,105765.03,GP Services
Department of Health,"NHS Beds, Luton & MK ICB",30/09/2022,C&M-GMS Global Sum,DELEGATED GP,HARROLD MEDICAL PRACTICE,42583151,55854.43,GP Services
Department of Health,"NHS Beds, Luton & MK ICB",30/09/2022,C&M-GMS Global Sum,DELEGATED GP,GREENSANDS SURGERY,42583153,76538.57,GP Services
Department of Health,"NHS Beds, Luton & MK ICB",30/09/2022,C&M-GMS Global Sum,DELEGATED GP,GREENSANDS MEDICAL PRACTICE,42583157,104120.44,GP Services
Department of Health,"NHS Beds, Luton & MK ICB",30/09/2022,C&M-GMS Global Sum,DELEGATED GP,HOUGHTON REGIS MEDICAL CENTRE,42583163,91029.55,GP Services
Department of Health,"NHS Beds, Luton & MK ICB",30/09/2022,C&M-GMS Global Sum,DELEGATED GP,KING STREET SURGERY BEDFORD,42583168,168456.53,GP Services
Department of Health,"NHS Beds, Luton & MK ICB",30/09/2022,C&M-GMS Global Sum,DELEGATED GP,KINGSBURY COURT,42583172,75265.51,GP Services
Department of Health,"NHS Beds, Luton & MK ICB",30/09/2022,C&M-GMS Global Sum,DELEGATED GP,NEVILLE ROAD SURGERY,42583176,28358.93,GP Services
Department of Health,"NHS Beds, Luton & MK ICB",30/09/2022,C&M-GMS Global Sum,DELEGATED GP,LINDEN ROAD SURGERY,42583181,49883.12,GP Services
Department of Health,"NHS Beds, Luton & MK ICB",30/09/2022,C&M-GMS Global Sum,DELEGATED GP,KIRBY ROAD MEDICAL PRACTICE,42583184,63870.69,GP Services
Department of Health,"NHS Beds, Luton & MK ICB",30/09/2022,C&M-GMS Global Sum,DELEGATED GP,LISTER HOUSE SURGERY LUTON,42583189,46462.58,GP Services
Department of Health,"NHS Beds, Luton & MK ICB",30/09/2022,C&M-GMS Global Sum,DELEGATED GP,DR KEDWARD & PARTNERS,42583193,152310.86,GP Services
Department of Health,"NHS Beds, Luton & MK ICB",30/09/2022,C&M-GMS Global Sum,DELEGATED GP,LARKSFIELD SURGERY,42583199,106579.62,GP Services
Department of Health,"NHS Beds, Luton & MK ICB",30/09/2022,C&M-GMS Global Sum,DELEGATED GP,LARKSIDE PRACTICE,42583203,71489.71,GP Services
Department of Health,"NHS Beds, Luton & MK ICB",30/09/2022,ME - GMS GP Prior Year ERs,DELEGATED GP,LARKSIDE PRACTICE,42583203,30869.06,GP Services
Department of Health,"NHS Beds, Luton & MK ICB",30/09/2022,ME-GMS GP Prior Year EEs,DELEGATED GP,LARKSIDE PRACTICE,42583203,31126.66,GP Services
Department of Health,"NHS Beds, Luton & MK ICB",30/09/2022,C&M-GMS Global Sum,DELEGATED GP,MERSEY PLACE MEDICAL PRACTICE,42583206,219614.00,GP Services
Department of Health,"NHS Beds, Luton & MK ICB",30/09/2022,C&M-GMS Global Sum,DELEGATED GP,LEIGHTON ROAD MEDICAL PRACTICE,42583211,137841.37,GP Services
Department of Health,"NHS Beds, Luton & MK ICB",30/09/2022,C&M-GMS Global Sum,DELEGATED GP,PRIORY GARDENS MEDICAL PRACTICE,42583215,128145.64,GP Services
Department of Health,"NHS Beds, Luton & MK ICB",30/09/2022,C&M-GMS Global Sum,DELEGATED GP,PRIORY MEDICAL PRACTICE,42583220,62177.48,GP Services
Department of Health,"NHS Beds, Luton & MK ICB",30/09/2022,C&M-GMS Global Sum,DELEGATED GP,WHITE HORSE VALE,42583223,58400.80,GP Services
Department of Health,"NHS Beds, Luton & MK ICB",30/09/2022,C&M-GMS Global Sum,DELEGATED GP,DR SS BASRA,42583226,25781.55,GP Services
Department of Health,"NHS Beds, Luton & MK ICB",30/09/2022,C&M-GMS Global Sum,DELEGATED GP,QUEENS PARK SURGERY,42583231,88037.44,GP Services
Department of Health,"NHS Beds, Luton & MK ICB",30/09/2022,C&M-GMS Global Sum,DELEGATED GP,BELL HOUSE MEDICAL PRACTICE,42583236,79568.55,GP Services
Department of Health,"NHS Beds, Luton & MK ICB",30/09/2022,C&M-GMS Global Sum,DELEGATED GP,SALISBURY HOUSE SURGERY,42583243,85854.48,GP Services
Department of Health,"NHS Beds, Luton & MK ICB",30/09/2022,C&M-GMS Global Sum,DELEGATED GP,SANDY HEALTH CENTRE,42583248,71343.36,GP Services
Department of Health,"NHS Beds, Luton & MK ICB",30/09/2022,C&M-GMS Global Sum,DELEGATED GP,DR KM HEDGES & PARTNERS,42583253,53823.80,GP Services
Department of Health,"NHS Beds, Luton & MK ICB",30/09/2022,C&M-GMS Global Sum,DELEGATED GP,SHEFFORD HEALTH CENTRE,42583258,144526.33,GP Services
Department of Health,"NHS Beds, Luton & MK ICB",30/09/2022,C&M-GMS Global Sum,DELEGATED GP,BUTE HOUSE MEDICAL PRACTICE,42583263,66203.59,GP Services
Department of Health,"NHS Beds, Luton & MK ICB",30/09/2022,C&M-GMS Global Sum,DELEGATED GP,CADDINGTON MEDICAL PRACTICE,42583268,47181.20,GP Services
Department of Health,"NHS Beds, Luton & MK ICB",30/09/2022,C&M-GMS PCN DES Clin Pharmacist,DELEGATED GP,CADDINGTON MEDICAL PRACTICE,42583268,32919.76,GP Services
Department of Health,"NHS Beds, Luton & MK ICB",30/09/2022,C&M-GMS Global Sum,DELEGATED GP,CASTLE ST,42583275,123292.54,GP Services
Department of Health,"NHS Beds, Luton & MK ICB",30/09/2022,C&M-GMS Global Sum,DELEGATED GP,SUNDON MEDICAL CENTRE,42583280,72809.16,GP Services
Department of Health,"NHS Beds, Luton & MK ICB",30/09/2022,C&M-GMS Global Sum,DELEGATED GP,DR IMRAN ISMAIL (E81043),42583284,81413.35,GP Services
Department of Health,"NHS Beds, Luton & MK ICB",30/09/2022,C&M-GMS Global Sum,DELEGATED GP,LEAGRAVE SURGERY,42583287,67696.80,GP Services
Department of Health,"NHS Beds, Luton & MK ICB",30/09/2022,C&M-GMS Global Sum,DELEGATED GP,HOCKWELL RING MEDICAL PRACTICE,42583290,42982.09,GP Services
Department of Health,"NHS Beds, Luton & MK ICB",30/09/2022,C&M-GMS Global Sum,DELEGATED GP,EASTGATE SURGERY,42583294,33035.97,GP Services
Department of Health,"NHS Beds, Luton & MK ICB",30/09/2022,C&M-GMS Global Sum,DELEGATED GP,CONWAY MED CTRE,42583298,53901.47,GP Services
Department of Health,"NHS Beds, Luton & MK ICB",30/09/2022,C&M-GMS Global Sum,DELEGATED GP,SAFFRON HEALTH PARTNERSHIP,42583302,167223.39,GP Services
Department of Health,"NHS Beds, Luton & MK ICB",30/09/2022,C&M-GMS Global Sum,DELEGATED GP,MALZEARD ROAD MEDICAL PRACTICE,42583307,69598.46,GP Services
Department of Health,"NHS Beds, Luton & MK ICB",30/09/2022,C&M-GMS Global Sum,DELEGATED GP,DR COLLINS & CARRAGHER,42583310,50744.98,GP Services
Department of Health,"NHS Beds, Luton & MK ICB",30/09/2022,C&M-GMS Global Sum,DELEGATED GP,DE PARYS GROUP,42583314,300752.34,GP Services
Department of Health,"NHS Beds, Luton & MK ICB",30/09/2022,C&M-GMS QOF Aspiration,DELEGATED GP,DE PARYS GROUP,42583314,35870.82,GP Services
Department of Health,"NHS Beds, Luton & MK ICB",30/09/2022,C&M-GMS Global Sum,DELEGATED GP,PASTURES WAY SURGERY,42583319,30320.28,GP Services
Department of Health,"NHS Beds, Luton & MK ICB",30/09/2022,C&M-GMS Global Sum,DELEGATED GP,ASHCROFT ROAD MEDICAL PRACTICE,42583325,35259.64,GP Services
Department of Health,"NHS Beds, Luton & MK ICB",30/09/2022,C&M-GMS Global Sum,DELEGATED GP,BLENHEIM MEDICAL CENTRE,42583329,101018.72,GP Services
Department of Health,"NHS Beds, Luton & MK ICB",30/09/2022,C&M-GMS Global Sum,DELEGATED GP,DR ME GLAZE & PARTNERS,42583334,95540.40,GP Services
Department of Health,"NHS Beds, Luton & MK ICB",30/09/2022,C&M-GMS Global Sum,DELEGATED GP,WOODLAND PRACTICE,42583342,87833.81,GP Services
Department of Health,"NHS Beds, Luton & MK ICB",30/09/2022,C&M-GMS Global Sum,DELEGATED GP,BASSETT ROAD MEDICAL PRACTICE,42583348,145133.16,GP Services
Department of Health,"NHS Beds, Luton & MK ICB",30/09/2022,C&M-GMS Global Sum,DELEGATED GP,MEDICI MEDICAL CENTRE,42583352,118459.21,GP Services
Department of Health,"NHS Beds, Luton & MK ICB",30/09/2022,C&M-GMS Global Sum,DELEGATED GP,WEST STREET SURGERY,42583356,94604.93,GP Services
Department of Health,"NHS Beds, Luton & MK ICB",30/09/2022,C&M-GMS Global Sum,DELEGATED GP,OAKLEY SURGERY,42583360,57388.23,GP Services
Department of Health,"NHS Beds, Luton & MK ICB",30/09/2022,Clinical&Medical-Serv Recd-CCGs,PRIMARY CARE IT,NHS HERTFORDSHIRE AND WEST ESSEX ICB,42593238,491020.00,GP Services
Department of Health,"NHS Beds, Luton & MK ICB",30/09/2022,Charges from ICB,IM&T,NHS HERTFORDSHIRE AND WEST ESSEX ICB,42593241,160101.00,ICT Core Service
Department of Health,"NHS Beds, Luton & MK ICB",30/09/2022,Clinical&Medical-Independent Sector,COMMUNITY SERVICES C,AGE UK MILTON KEYNES,42593295,47068.75,Care Fees
Department of Health,"NHS Beds, Luton & MK ICB",30/09/2022,Cont Care-Learning Disab(<65),CHC ADULT FULLY FUNDED,ALDERWOOD LLA LTD,42603631,30040.00,Care Fees
Department of Health,"NHS Beds, Luton & MK ICB",30/09/2022,Cont Care-Learning Disab(<65),CHC ADULT FULLY FUNDED,ALDERWOOD LLA LTD,42603635,27600.34,Care Fees
Department of Health,"NHS Beds, Luton & MK ICB",30/09/2022,Cont Care-Learning Disab(<65),CHC ADULT FULLY FUNDED,ALDERWOOD LLA LTD,42603637,26600.12,Care Fees
Department of Health,"NHS Beds, Luton & MK ICB",30/09/2022,C&M-GMS Global Sum,DELEGATED GP,HOUGHTON CLOSE SURGERY,42604858,91553.84,GP Services
Department of Health,"NHS Beds, Luton & MK ICB",30/09/2022,C&M-GMS PCO Locum Sickness,DELEGATED GP,HOUGHTON CLOSE SURGERY,42604858,26704.34,GP Services
Department of Health,"NHS Beds, Luton & MK ICB",30/09/2022,C&M-GMS Global Sum,DELEGATED GP,ASPLANDS MEDICAL CENTRE,42604859,104378.74,GP Services
Department of Health,"NHS Beds, Luton & MK ICB",30/09/2022,C&M-GMS Global Sum,DELEGATED GP,OLIVER STREET SURGERY,42604860,64153.49,GP Services
Department of Health,"NHS Beds, Luton & MK ICB",30/09/2022,C&M-GMS Global Sum,DELEGATED GP,STOPSLEY VILLAGE PRACTICE,42604861,69717.08,GP Services
Department of Health,"NHS Beds, Luton & MK ICB",30/09/2022,C&M-GMS Global Sum,DELEGATED GP,TODDINGTON MEDICAL CENTRE,42604862,61269.81,GP Services
Department of Health,"NHS Beds, Luton & MK ICB",30/09/2022,C&M-GMS Cost of Drugs -Dispensing,CENTRAL DRUGS,GT BARFORD SURGERY,42605192,40039.23,Medicines
Department of Health,"NHS Beds, Luton & MK ICB",30/09/2022,C&M-GMS Cost of Drugs -Dispensing,CENTRAL DRUGS,HARROLD MEDICAL PRACTICE,42605198,74897.52,Medicines
Department of Health,"NHS Beds, Luton & MK ICB",30/09/2022,C&M-GMS Cost of Drugs -Dispensing,CENTRAL DRUGS,GREENSANDS MEDICAL PRACTICE,42605207,34866.63,Medicines
Department of Health,"NHS Beds, Luton & MK ICB",30/09/2022,C&M-GMS Cost of Drugs -Dispensing,CENTRAL DRUGS,HOUGHTON CLOSE SURGERY,42605211,33010.59,Medicines
Department of Health,"NHS Beds, Luton & MK ICB",30/09/2022,C&M-GMS Cost of Drugs -Dispensing,CENTRAL DRUGS,ASPLANDS MEDICAL CENTRE,42605259,36106.82,Medicines
Department of Health,"NHS Beds, Luton & MK ICB",30/09/2022,C&M-GMS Cost of Drugs -Dispensing,CENTRAL DRUGS,DR KM HEDGES & PARTNERS,42605267,32160.41,Medicines
Department of Health,"NHS Beds, Luton & MK ICB",30/09/2022,C&M-GMS Cost of Drugs -Dispensing,CENTRAL DRUGS,DR ME GLAZE & PARTNERS,42605307,43929.28,Medicines
Department of Health,"NHS Beds, Luton & MK ICB",30/09/2022,Clinical&Medical-Independent Sector,MENTAL HEALTH ACT,GLENHOLME HEALTHCARE LTD,42605914,27223.05,Care Fees
Department of Health,"NHS Beds, Luton & MK ICB",30/09/2022,Clinical&Medical-Independent Sector,MENTAL HEALTH ACT,GLENHOLME HEALTHCARE LTD,42605916,27223.05,Care Fees
Department of Health,"NHS Beds, Luton & MK ICB",30/09/2022,Clinical&Medical-Commercial Sector,INTERMEDIATE CARE,MARBROOK CARE,42609944,26534.29,Care Fees
Department of Health,"NHS Beds, Luton & MK ICB",30/09/2022,Clinical&Medical-Commercial Sector,INTERMEDIATE CARE,MARBROOK CARE,42609965,29268.57,Care Fees
Department of Health,"NHS Beds, Luton & MK ICB",30/09/2022,C&M-GMS Cost of Drugs -Prescribing,CENTRAL DRUGS,SALISBURY HOUSE SURGERY,42616491,71414.04,Medicines
Department of Health,"NHS Beds, Luton & MK ICB",30/09/2022,Hcare Srv Rec Fdtn Trust-Prior Year,MENTAL HEALTH SERVICES A,EAST LONDON NHS FOUNDATION TRUST,42618557,41263.48,NHS Healthcare Contract
Department of Health,"NHS Beds, Luton & MK ICB",30/09/2022,Hcare Srv Rec Fdtn Trust-Prior Year,MENTAL HEALTH SERVICES A,EAST LONDON NHS FOUNDATION TRUST,42618562,47815.33,NHS Healthcare Contract
Department of Health,"NHS Beds, Luton & MK ICB",30/09/2022,Hcare Srv Rec Fdtn Trust-Prior Year,MENTAL HEALTH SERVICES A,EAST LONDON NHS FOUNDATION TRUST,42618565,39638.55,NHS Healthcare Contract
Department of Health,"NHS Beds, Luton & MK ICB",30/09/2022,Hcare Srv Rec Fdtn Trust-Prior Year,MENTAL HEALTH SERVICES A,EAST LONDON NHS FOUNDATION TRUST,42618567,25395.99,NHS Healthcare Contract
Department of Health,"NHS Beds, Luton & MK ICB",30/09/2022,Hcare Srv Rec Fdtn Trust-Prior Year,MENTAL HEALTH SERVICES A,EAST LONDON NHS FOUNDATION TRUST,42618570,28289.27,NHS Healthcare Contract
Department of Health,"NHS Beds, Luton & MK ICB",30/09/2022,Hcare Srv Rec Fdtn Trust-Prior Year,MENTAL HEALTH SERVICES A,EAST LONDON NHS FOUNDATION TRUST,42618571,45085.08,NHS Healthcare Contract
Department of Health,"NHS Beds, Luton & MK ICB",30/09/2022,Hcare Srv Rec Fdtn Trust-Prior Year,MENTAL HEALTH SERVICES A,EAST LONDON NHS FOUNDATION TRUST,42618574,27776.94,NHS Healthcare Contract
Department of Health,"NHS Beds, Luton & MK ICB",30/09/2022,Hcare Srv Rec Fdtn Trust-Prior Year,MENTAL HEALTH SERVICES A,EAST LONDON NHS FOUNDATION TRUST,42618576,25317.50,NHS Healthcare Contract
Department of Health,"NHS Beds, Luton & MK ICB",30/09/2022,Hcare Srv Rec Fdtn Trust-Prior Year,MENTAL HEALTH SERVICES A,EAST LONDON NHS FOUNDATION TRUST,42618582,47584.98,NHS Healthcare Contract
Department of Health,"NHS Beds, Luton & MK ICB",30/09/2022,Hcare Srv Rec Fdtn Trust-Prior Year,MENTAL HEALTH SERVICES A,EAST LONDON NHS FOUNDATION TRUST,42618584,25559.81,NHS Healthcare Contract
Department of Health,"NHS Beds, Luton & MK ICB",30/09/2022,Hcare Srv Rec Fdtn Trust-Prior Year,MENTAL HEALTH SERVICES A,EAST LONDON NHS FOUNDATION TRUST,42618587,33156.48,NHS Healthcare Contract
Department of Health,"NHS Beds, Luton & MK ICB",30/09/2022,Hcare Srv Rec Fdtn Trust-Prior Year,MENTAL HEALTH SERVICES A,EAST LONDON NHS FOUNDATION TRUST,42618589,45960.01,NHS Healthcare Contract
Department of Health,"NHS Beds, Luton & MK ICB",30/09/2022,Hcare Srv Rec Fdtn Trust-Prior Year,MENTAL HEALTH SERVICES A,EAST LONDON NHS FOUNDATION TRUST,42618592,31504.41,NHS Healthcare Contract
Department of Health,"NHS Beds, Luton & MK ICB",30/09/2022,Hcare Srv Rec Fdtn Trust-Prior Year,MENTAL HEALTH SERVICES A,EAST LONDON NHS FOUNDATION TRUST,42618595,31970.40,NHS Healthcare Contract
Department of Health,"NHS Beds, Luton & MK ICB",30/09/2022,Clinical&Medical-Independent Sector,CYP MENTAL HEALTH (EXC LD),CENTRAL BEDFORDSHIRE COUNCIL,42618598,65737.89,Care Fees
Department of Health,"NHS Beds, Luton & MK ICB",30/09/2022,Clinical&Medical-Independent Sector,CYP MENTAL HEALTH (EXC LD),CENTRAL BEDFORDSHIRE COUNCIL,42618618,37361.34,Care Fees
Department of Health,"NHS Beds, Luton & MK ICB",30/09/2022,Clinical&Medical-Independent Sector,CYP MENTAL HEALTH (EXC LD),CENTRAL BEDFORDSHIRE COUNCIL,42618666,39253.92,Care Fees
Department of Health,"NHS Beds, Luton & MK ICB",30/09/2022,Clinical&Medical-Independent Sector,CYP MENTAL HEALTH (EXC LD),CENTRAL BEDFORDSHIRE COUNCIL,42618674,31203.57,Care Fees
Department of Health,"NHS Beds, Luton & MK ICB",30/09/2022,Clinical&Medical-Othe Public Sector,MENTAL HEALTH ACT,LUTON BOROUGH COUNCIL,42618681,433462.00,Care Fees
Department of Health,"NHS Beds, Luton & MK ICB",30/09/2022,Clinical&Medical-Commercial Sector,ACUTE NCA,NEW MEDICAL SYSTEMS LTD,42618691,39933.82,Out of Area Treatment
Department of Health,"NHS Beds, Luton & MK ICB",30/09/2022,Clinical&Medical-Othe Public Sector,LD AND AUTISM,MILTON KEYNES COUNCIL,42618739,384821.76,Pooled budget contribution
Department of Health,"NHS Beds, Luton & MK ICB",30/09/2022,Clinical&Medical-Commercial Sector,ACUTE NCA,NEW MEDICAL SYSTEMS LTD,42618764,26750.55,Out of Area Treatment
Department of Health,"NHS Beds, Luton & MK ICB",30/09/2022,Clinical&Medical-Independent Sector,ACUTE NCA,YOUNG EPILEPSY,42618861,27235.00,Out of Area Treatment
Department of Health,"NHS Beds, Luton & MK ICB",30/09/2022,Cont Care-Learning Disab(<65),CHC AD FULL FUND PERS HLTH BUD,HAVILAH CARE LTD,42619867,37047.30,Personal health budget
Department of Health,"NHS Beds, Luton & MK ICB",30/09/2022,Clinical&Medical-Independent Sector,MENTAL HEALTH ACT,HAVILAH CARE LTD,42619870,26166.13,Care Fees
Department of Health,"NHS Beds, Luton & MK ICB",30/09/2022,Hcare Srv Rec Fdtn Trust-Prior Year,MENTAL HEALTH SERVICES A,EAST LONDON NHS FOUNDATION TRUST,42620650,-1122517.20,NHS Healthcare Contract
Department of Health,"NHS Beds, Luton & MK ICB",30/09/2022,C&M-GMS Global Sum,DELEGATED GP,QUEENS PARK SURGERY,42630718,58378.50,GP Services
Department of Health,"NHS Beds, Luton & MK ICB",30/09/2022,Cont Care-Physical Disab (<65),CHC ADULT FULLY FUNDED,FAIRLIE HEALTHCARE LTD,42632698,31130.34,Care Fees
Department of Health,"NHS Beds, Luton & MK ICB",30/09/2022,Clinical&Medical-Commercial Sector,INTERMEDIATE CARE,MARBROOK CARE,42636704,26772.86,Care Fees
Department of Health,"NHS Beds, Luton & MK ICB",30/09/2022,Clinical&Medical-Independent Sector,COMMUNITY SERVICES E,CARE NORTHAMPTON,42636725,29359.00,Specialist Fertility Services (IVF)
Department of Health,"NHS Beds, Luton & MK ICB",30/09/2022,Clinical&Medical-Independent Sector,COMMUNITY SERVICES C,BEDFORDSHIRE RURAL COMMUNITIES CHARITY,42636830,66000.00,Social Prescribing Work
Department of Health,"NHS Beds, Luton & MK ICB",30/09/2022,Clinical&Medical-Voluntary Sector,HOSPICES,KEECH HOSPICE CARE,42637296,355223.00,Hospice Services
Department of Health,"NHS Beds, Luton & MK ICB",30/09/2022,Clinical&Medical-Independent Sector,COMMUNITY SERVICES E,BOURN HALL CLINIC,42637345,30060.00,Specialist Fertility Services (IVF)
Department of Health,"NHS Beds, Luton & MK ICB",30/09/2022,Clinical&Medical-Independent Sector,COMMUNITY SERVICES D,WHADDON MEDICAL CENTRE,42644549,40147.50,Community Service Contract
Department of Health,"NHS Beds, Luton & MK ICB",30/09/2022,Clinical&Medical-Independent Sector,COMMUNITY SERVICES D,WHADDON MEDICAL CENTRE,42644551,50928.00,Community Service Contract
Department of Health,"NHS Beds, Luton & MK ICB",30/09/2022,Clinical&Medical-Independent Sector,COMMUNITY SERVICES D,WHADDON MEDICAL CENTRE,42644552,31054.00,Community Service Contract
Department of Health,"NHS Beds, Luton & MK ICB",30/09/2022,Clinical&Medical-Independent Sector,LONG TERM CONDITIONS,CONNECT HEALTH LTD,42644553,119498.25,GP Services
Department of Health,"NHS Beds, Luton & MK ICB",30/09/2022,Clinical&Medical-Independent Sector,LONG TERM CONDITIONS,CIRCLE CLINICAL SERVICES LTD,42644558,41667.00,GP Services
Department of Health,"NHS Beds, Luton & MK ICB",30/09/2022,Clinical&Medical-Independent Sector,LONG TERM CONDITIONS,CIRCLE CLINICAL SERVICES LTD,42644562,887500.00,GP Services
